Cogmind - Beta 13 @@@ ROGUE MODE // 2024.04.27 @ 17:41:27 Player: FlyingLemon Result: Self-destructed Performance ------------- Evolutions (2) 1000 Regions Visited (3) 600 Robots Destroyed (25) 125 Value Destroyed (622) 622 Prototype IDs (2) 40 Alien Tech Used (0) 0 Bonus (0) 0 TOTAL SCORE: 2387 Bonus ------- None Cogmind --------- Core Integrity 550/550 Matter 290/300 Energy 280/280 System Corruption 0% Temperature Cool (0) Movement Rolling (125) Ox3 Location -8/Materials Parts ------- > --- POWER (1) -------- Cooled Ion Engine > --- PROPULSION (4) --- Light Treads Light Treads Wheel > --- UTILITY (4) ------ Large Storage Unit Visual Processing Unit Sensor Array Signal Interpreter > --- WEAPON (2) ------- Heavy Assault Rifle Gauss Cannon > --- INVENTORY (15) --- Light Deuterium Engine Light Nuclear Core Cesium-ion Thruster Small Storage Unit Advanced Weight Redist. System Advanced Weight Redist. System Advanced Weight Redist. System Signal Interpreter Seismic Detector Core Shielding Core Shielding Core Shielding Light Armor Plating EM Pulse Cannon Mini Grenade Launcher Peak State ------------ > --- POWER ------------ Cooled Ion Engine > --- PROPULSION ------- Light Treads Light Treads Wheel > --- UTILITY ---------- Large Storage Unit Visual Processing Unit Sensor Array Signal Interpreter > --- WEAPON ----------- Heavy Assault Rifle Gauss Cannon > --- INVENTORY -------- Light Deuterium Engine Light Nuclear Core Cesium-ion Thruster Small Storage Unit Advanced Weight Redist. System Advanced Weight Redist. System Advanced Weight Redist. System Signal Interpreter Seismic Detector Core Shielding Core Shielding Core Shielding Light Armor Plating EM Pulse Cannon Mini Grenade Launcher [Rating: 20] Favorites ----------- Power Ion Engine Engine Ion Engine Propulsion Light Treads Treads Light Treads Wheel Wheel Utility Large Storage Unit Device Sensor Array Storage Large Storage Unit Processor Signal Interpreter Protection Core Shielding Weapon Heavy Assault Rifle Energy Gun Medium Laser Ballistic Gun Heavy Assault Rifle Ballistic Cannon Gauss Cannon Build | -11 -10 -9 -8 ------- Run | Yrd Mat Mat Mat Slots Evolved 4 | . . 2 2 Power . | . . . . Propulsion 2 | . . 1 1 Utility 2 | . . 1 1 Weapon . | . . . . Parts Attached 28 | 6 9 11 2 Power 4 | 1 . 3 . Engine 4 | 1 . 3 . Core . | . . . . Reactor . | . . . . Propulsion 9 | 2 2 5 . Treads 6 | 1 1 4 . Leg . | . . . . Wheel 3 | 1 1 1 . Hover . | . . . . Flight . | . . . . Utility 7 | 1 4 1 1 Device 2 | . 1 . 1 Storage 2 | 1 1 . . Processor 2 | . 1 1 . Hackware . | . . . . Protection 1 | . 1 . . Artifact . | . . . . Weapon 8 | 2 3 2 1 Energy Gun 3 | 1 2 . . Energy Cannon . | . . . . Ballistic Gun 4 | 1 1 2 . Ballistic Cannon 1 | . . . 1 Launcher . | . . . . Special Weapon . | . . . . Impact Weapon . | . . . . Slashing Weapon . | . . . . Piercing Weapon . | . . . . Special Melee Weapon . | . . . . Unidentified Prototypes 2 | . . 2 . Parts Lost 4 | . 2 1 1 Power . | . . . . Propulsion 2 | . 1 1 . Utility 1 | . 1 . . Weapon 1 | . . . 1 Highest Loss Streak 1 | . 1 1 1 To Critical Strikes . | . . . . Average Slot Usage (%) 97 | . 99 98 86 Engine 11 | . 14 11 9 Treads 18 | . 14 21 18 Wheel 11 | . 13 10 9 Device 2 | . 3 . 9 Storage 11 | . 14 11 9 Processor 15 | . 6 22 18 Energy Gun 5 | . 14 1 . Ballistic Gun 17 | . 14 20 14 Naked Turns . | . . . . Heaviest Build 39 | 13 29 34 39 Greatest Support 40 | 20 20 40 10 Greatest Overweight (x) 3 | 1 2 3 3 Average Overweight (x) 1 | . 1 . 3 Largest Inventory Capacity 15 | 8 15 15 15 Average Capacity 14 | 7 13 15 15 Most Carried 15 | 6 11 15 15 Average Carried 12 | 3 9 14 14 Final Capacity 15 | 8 15 15 15 Final Carried 15 | 6 11 15 15 Class Distribution -------------------- 51% | Scavenger-Mutant 42% | Mutant 5% | Scavenger-Skirmisher Dominant Class ---------------- Mutant | -10/Materials Scavenger-Mutant | -9/Materials Scavenger-Skirmisher | -8/Materials Resources | -11 -10 -9 -8 ----------- Run | Yrd Mat Mat Mat Matter Collected 704 | 189 176 309 30 Remotely . | . . . . Salvage Created 770 | . 269 501 . Parts 55 | . 21 34 . Haulers Intercepted 1 | . . 1 . Recyclers Shooed . | . . . . Parts Field Recycled . | . . . . Retrieved Matter . | . . . . Parts Self-Destructed . | . . . . Prevented . | . . . . Kills | -11 -10 -9 -8 ------- Run | Yrd Mat Mat Mat Combat Hostiles Destroyed 22 | . 8 14 . Guns 22 | . 8 14 . Classes Destroyed 5 | . 3 2 . Hauler 1 | . . 1 . Watcher 2 | . 2 . . Swarmer 9 | . 3 6 . Grunt 10 | . 5 5 . Sentry 3 | . . 3 . Best Kill Streak 3 | . 3 3 . Combat Bots Only 3 | . 3 3 . Max Kills in Single Turn 2 | . 1 2 . Gunslinging 1 | . . 1 . Exploded . | . . . . Melee . | . . . . Uniques/NPCs Destroyed . | . . . . Combat | -11 -10 -9 -8 -------- Run | Yrd Mat Mat Mat Hostile Shots Fired 126 | . 59 67 . Missed 33 | . 12 21 . Damage Taken 1056 | . 465 538 53 Core 114 | . 85 29 . Absorbed by Shields . | . . . . Core Remaining (%) 86 | 100 66 92 . Volleys Fired 66 | . 25 41 . Largest 2 | . 2 2 . Hottest 73 | . 70 73 . Shots Fired 132 | . 50 82 . Gun 132 | . 50 82 . Cannon . | . . . . Launcher . | . . . . Special . | . . . . Kinetic 101 | . 25 76 . Thermal 31 | . 25 6 . Explosive . | . . . . Electromagnetic . | . . . . Robot Hit Streak 20 | . 10 20 . Robot Miss Streak 4 | . 4 4 . Penetration Max . | . . . . Secondary Targets 3 | . 1 2 . Max Gunslinging Chain 1 | . 1 1 . Shots Hit Robots 87 | . 31 56 . Core Hits 41 | . 17 24 . Critical Kills . | . . . . Critical Parts Destroyed 1 | . . 1 . Critical Strikes 1 | . . 1 . Destroy 1 | . . 1 . Melee Attacks . | . . . . Impact . | . . . . Slashing . | . . . . Piercing . | . . . . Sneak Attacks . | . . . . Combat Hostiles . | . . . . Follow-up Attacks . | . . . . Damage Inflicted 1135 | . 321 814 . Guns 1135 | . 321 814 . Cannons . | . . . . Explosions . | . . . . Melee . | . . . . Ramming . | . . . . Kinetic 866 | . 125 741 . Thermal 269 | . 196 73 . Explosive . | . . . . Electromagnetic . | . . . . Impact . | . . . . Slashing . | . . . . Piercing . | . . . . Highest Corruption 4 | . . 4 . Average Corruption 4 | . . 4 . Corruption Purged . | . . . . Corruption Blocked . | . . . . Effects 3 | . . 3 . Matter Fused 1 | . . 1 . Energy Discharges 2 | . . 2 . Overload Shots . | . . . . Overflow Damage . | . . . . Projectiles . | . . . . Explosions . | . . . . Melee . | . . . . Knockbacks . | . . . . Impact . | . . . . Kinetic . | . . . . Secondary . | . . . . Self-Inflicted Damage . | . . . . Shots . | . . . . Rammed . | . . . . Targets Rammed . | . . . . Kicked . | . . . . Crushed . | . . . . Highest Temperature 204 | . 204 78 . Average Temperature 64 | . 72 29 . Received Heat Transfer 360 | . 180 162 18 Siege Activations . | . . . . Robots Corrupted . | . . . . Combat Hostiles . | . . . . Parts Fried . | . . . . Impact Corruptions . | . . . . Robots Melted . | . . . . Combat Hostiles . | . . . . Parts Melted . | . . . . Heat Transferred 802 | . 580 222 . Parts Sabotaged . | . . . . Parts Stolen . | . . . . Parts Stripped . | . . . . Power Chain Reactions . | . . . . Alert | -11 -10 -9 -8 ------- Run | Yrd Mat Mat Mat Peak Influence 245 | . 154 245 114 Initial 99 | . . 65 99 Average 104 | . 53 146 106 Maximum Alert Level 1 | . . 1 . Low Security (%) 90 | 100 100 81 100 Level 1 9 | . . 18 . Level 2 . | . . . . Level 3 . | . . . . Level 4 . | . . . . Level 5 . | . . . . High Security . | . . . . Max Security . | . . . . Squads Dispatched 4 | . 2 1 1 Investigation 3 | . 2 1 . Extermination . | . . . . Reinforcement 1 | . . . 1 Assault . | . . . . Garrison . | . . . . Intercept . | . . . . Searches Triggered . | . . . . Construction Impeded . | . . . . Haulers Reinforced . | . . . . Active Scanning Responses . | . . . . Cargo Convoy Interrupts . | . . . . Stealth | -11 -10 -9 -8 --------- Run | Yrd Mat Mat Mat Distress Signals 4 | . 1 3 . Communications Jammed . | . . . . Distress Signals . | . . . . Times Spotted 38 | . 13 24 1 Peak Tracking Total 5 | . 4 5 1 Tactical Retreats 3 | . . 3 . Traps | -11 -10 -9 -8 ------- Run | Yrd Mat Mat Mat Traps Triggered 2 | . 1 1 . Indirectly . | . . . . Trap Hack Attempts . | . . . . Triggered . | . . . . Disarmed . | . . . . Reprogrammed . | . . . . Reused . | . . . . Traps Extracted . | . . . . Installed . | . . . . Triggered . | . . . . Machines | -11 -10 -9 -8 ---------- Run | Yrd Mat Mat Mat Machines Disabled 1 | . . 1 . Max in Single Turn 1 | . . 1 . Machines Repaired . | . . . . Machines Dismantled . | . . . . Machines Sabotaged . | . . . . Overloaded Fab Kills . | . . . . Hacking | -11 -10 -9 -8 --------- Run | Yrd Mat Mat Mat Machines Accessed 9 | . 5 2 2 Terminals 8 | . 4 2 2 Fabricators . | . . . . Repair Stations . | . . . . Recycling Units 1 | . 1 . . Scanalyzers . | . . . . Garrison Access . | . . . . Total Hacks 21 | . 11 6 4 Successful 12 | . 8 3 1 Failed 9 | . 3 3 3 Catastrophic 2 | . . . 2 Database Lockouts . | . . . . Manual 13 | . 7 2 4 Terminals 18 | . 8 6 4 Fabricators . | . . . . Repair Stations . | . . . . Recycling Units 3 | . 3 . . Scanalyzers . | . . . . Garrison Access . | . . . . Terminal Hacks 2 | . 1 1 . Alert Level 1 | . 1 . . Hauler Manifests 1 | . . 1 . Fabricator Hacks . | . . . . Repair Station Hacks . | . . . . Recycling Unit Hacks 2 | . 2 . . Report Inventory 1 | . 1 . . Retrieve Components 1 | . 1 . . Scanalyzer . | . . . . Garrison Access Hacks . | . . . . Unauthorized Hacks 8 | . 5 2 1 Terminals 7 | . 4 2 1 Botnet 7 | . 4 2 1 Fabricators . | . . . . Repair Stations . | . . . . Recycling Units 1 | . 1 . . Tunnel 1 | . 1 . . Scanalyzers . | . . . . Garrison Access . | . . . . Data Cores Recovered . | . . . . Used . | . . . . Hacking Detections 7 | . 3 2 2 Full Trace Events . | . . . . Feedback Events . | . . . . Feedback Blocked . | . . . . Robot Schematics Acquired . | . . . . Robots Built . | . . . . Authchips . | . . . . Time . | . . . . Total Robot Build Rating . | . . . . Part Schematics Acquired . | . . . . Parts Built . | . . . . Authchips . | . . . . Time . | . . . . Total Part Build Rating . | . . . . Parts Repaired . | . . . . Time . | . . . . Parts Recycled . | . . . . Recycled Matter . | . . . . Retrieved Matter . | . . . . Retrieved Components 9 | . 9 . . Parts Scanalyzed . | . . . . Part Schematics Acquired . | . . . . Parts Damaged . | . . . . Bothacking | -11 -10 -9 -8 ------------ Run | Yrd Mat Mat Mat Used RIF Installer . | . . . . Robots Hacked . | . . . . Non-combat . | . . . . Combat . | . . . . Robot Hacks Applied . | . . . . Relay Couplers Released . | . . . . Fabnet Peak Effective % . | . . . . Robots Rewired . | . . . . Allies Hacked . | . . . . Hacks Repelled . | . . . . Allies | -11 -10 -9 -8 -------- Run | Yrd Mat Mat Mat Total Allies . | . . . . Largest Group . | . . . . Highest-Rated Group . | . . . . Highest-Rated Ally . | . . . . Total Orders . | . . . . Ally Attacks . | . . . . Total Damage . | . . . . Kills . | . . . . Allies Corrupted . | . . . . Allies Melted . | . . . . Intel | -11 -10 -9 -8 ------- Run | Yrd Mat Mat Mat Robot Analysis Total . | . . . . Derelict Logs Recovered . | . . . . Drone Launches . | . . . . Drone Recoveries . | . . . . Exploration | -11 -10 -9 -8 ------------- Run | Yrd Mat Mat Mat Turns Passed 2181 | 74 779 1098 230 Spaces Moved 1185 | 48 455 505 177 Core 2 | 2 . . . Treads 576 | 27 170 379 . Legs . | . . . . Wheels 607 | 19 285 126 177 Hover . | . . . . Flight . | . . . . Fastest Speed 50 | 50 95 125 125 Average Speed 146 | 125 148 154 125 Slowest Speed 240 | 160 240 240 125 Overloaded Moves . | . . . . Propulsion Burnouts . | . . . . Robots Hopped . | . . . . Cave-ins Triggered . | . . . . Exploration Rate (%) 29 | 3 59 35 21 Regions Visited 3 Branch Regions . Pre-discovered Areas 1 | . 1 . . Known Exits Taken 2 | . 1 1 . Unknown Exits Taken 1 | 1 . . . Scrap Searched . | . . . . Spaces Dug . | . . . . Terrain Destroyed . | . . . . Melee . | . . . . Projectile . | . . . . AOE . | . . . . Terrain Rammed . | . . . . Walls Destroyed . | . . . . Machines Disabled . | . . . . Actions | -11 -10 -9 -8 --------- Run | Yrd Mat Mat Mat Total 1504 | 59 515 744 186 Wait 179 | . 11 168 . Move 1182 | 47 454 504 177 Hop . | . . . . Pick Up 27 | 6 9 8 4 Fast Attach 16 | 6 4 5 1 Attach 3 | . 1 1 1 Detach 1 | . . 1 . Swap 9 | . 4 5 . Drop 21 | . 7 11 3 Fire 66 | . 25 41 . Melee . | . . . . Ram . | . . . . Kick . | . . . . Crush . | . . . . Escape Stasis . | . . . . Rewire . | . . . . Trap . | . . . . Miscellaneous . | . . . . Route ------- -11/Scrapyard -10/Materials (discovered 3 exits: *Mat x2 / *Min) -9/Materials (discovered 2 exits: *Mat / *Sto) -8/Materials History --------- Turn | Location | Event 15 | -11/Scrapyard | Discovered new exit (range 16) 75 | -11/Scrapyard | Entered Materials 312 | -10/Materials | Build established: Mutant 478 | -10/Materials | Discovered new exit (range 3) 488 | -10/Materials | Identified exit to Materials 568 | -10/Materials | Discovered new exit (range 11) 590 | -10/Materials | Identified exit to Mines 720 | -10/Materials | Discovered exit to Materials (range 3) 854 | -10/Materials | Entered another Materials area 854 | -9/Materials | Evolved 2 slots: Propulsion x1, Utility x1 1231 | -9/Materials | Build established: Scavenger-Mutant 1917 | -9/Materials | Discovered new exit (range 7) 1922 | -9/Materials | Discovered new exit (range 18) 1926 | -9/Materials | Identified exit to Storage 1943 | -9/Materials | Identified exit to Materials 1952 | -9/Materials | Entered another Materials area 1952 | -8/Materials | Evolved 2 slots: Propulsion x1, Utility x1 2090 | -8/Materials | Met 7R-MNS 2182 | -8/Materials | Self-destructed Last Messages --------------- ALERT: Hostile activity reported, dispatching reinforcements to area. Dropped Core Shielding. Acquired Cesium-ion Thruster. Connecting with Terminal... >>Trojan(Botnet) Trojan loaded successfully. Testing... Terminal linked with 0 systems. Awaiting botnet instructions. Acquired Core Shielding. Hvy. Assault Rifle destroyed. 7R-MNS: "Almost blasted you there, haha, but you're not one of the Unaware, I see. I'm not one to ask for help, but would never refuse company on my journey of destruction." Dropped Lgt. Ion Engine. Acquired Lgt. Nuclear Core. Acquired 30 matter. U-05 Engineer builds a Wall. Connecting with Terminal... Acquired Gauss Cannon. Map ----- +----------------------------------------------------+ | ??????#+#+##### #??# #?? | | ??????+ # #??# """ #?? | | ??????# *+ ""T"" #??# """ #?? | | ??????###### # """"" #??# """ #?? | | ???????????#[%# ############?? | | ???????????#%=###+#+##### #?????? | | ???????#####!%! # % #?????? | | ??? # #?????? | | ??? + #?????? | | # #?????? | | # #?????? | | ###########??? | | ###################### # ! #??? | | ?????????????????????# # #??? | | ???????????????#?????# # """"""" #??? | | ???????????????#"????# # """""""????? | | ????????????#### #####g # """"""?????? | | ????????????# ! x # # """"""?????? | | ????????????# [%""" u + """"""?????? | | ????????????# *!""" # # #??? | | ????????????# """ # ###########??? | | ????????????# # #?????????? | | ????????????# """ + #?????????? | | ????????????# """ # ##????????? | | ????????????# """ # #????????? | | ????????????# #!!!@ ]#????????? | | ????????????##########!!!!]]#????????? | | ?????????????????????########????????? | | ?????????????????????????????????????? | | | | | | | | | | | | | | | | | | | | | | | | | | | | | | | | | | | | | | | | | | | +----------------------------------------------------+ Best States ------------- Heat Dissipation 31 Energy Generation 14 Energy Capacity 280 Matter Stores 300 Matter Capacity 300 Sight Range 18 Robot Scan Range 14 Terrain Scan Density 10 Core Shielding 20 Evasion (%) 44 Recoil Reduction 2 Item Schematics ----------------- None Robot Schematics ------------------ None Fabricated ------------ Nothing Alien Tech Used ----------------- None Achievements -------------- None Challenges ------------ None Game ------ Seed ActiveRecyclingCloak Manual? 0 Play Time 00:23:05 Cumulative 24.8 hours Start 2024.04.24 @ 21:16:40 End 2024.04.27 @ 17:41:27 Sessions 3 Manual Loads 0 Difficulty Rogue Special Mode None Game No. 36 Rogue 36 Adventurer 0 Explorer 0 Win Type - Total 0 Types 0/0/0/0/0/0/0/0/0 Lore% 29 Gallery% 36 Achievement% 30 Wizard Run 0 Options --------- Layout 0 ASCII 0 Keyboard 0 Movement Numpad Keybinds 0 Fullscreen 2 Font 24/Smallcaps Map View 76x50 Zoom Use 0% Tactical HUD 0 Map Filters NONE Filters NONE Steam 1 RUN: e822c50a-4a03-4e78-aafc-050df6613112